Cogmind - Beta 14 @@@ ROGUE MODE // 2024.10.01 @ 23:53:47 Player: so_sleepy.mp4 Result: Destroyed by G-47 Trooper with Particle Gun Performance ------------- Evolutions (2) 1000 Regions Visited (3) 600 Robots Destroyed (45) 225 Value Destroyed (1397) 1397 Prototype IDs (1) 20 Alien Tech Used (0) 0 Bonus (35) 35 TOTAL SCORE: 3277 Bonus ------- High Alert Combat Kills 35 Cogmind --------- Core Integrity 0/550 Matter 300/300 Energy 100/100 System Corruption 0% Temperature Cool (9) Movement Core (400) Ox7 Location -8/Materials Parts ------- > --- POWER (2) -------- (None) > --- PROPULSION (4) --- (None) > --- UTILITY (3) ------ Large Storage Unit Improved Signal Interpreter > --- WEAPON (2) ------- Hammer > --- INVENTORY (15) --- Carbon-fiber Leg Advanced Heat Sink Improved Signal Interpreter Terrain Scan Processor Assault Rifle Rocket Launcher Datajack Hammer Peak State ------------ > --- POWER ------------ Light Nuclear Core Light Angular Momentum Engine > --- PROPULSION ------- Aluminum Leg Aluminum Leg Improved Aluminum Leg Carbon-fiber Leg > --- UTILITY ---------- Large Storage Unit Improved Signal Interpreter Improved Light Armor Plating > --- WEAPON ----------- Light EM Pulse Cannon Hammer > --- INVENTORY -------- Aluminum Leg Advanced Heat Sink Improved Signal Interpreter Beam Cannon Particle Cannon Assault Rifle Rocket Launcher Rocket Launcher Datajack Hammer [Rating: 26] Favorites ----------- Power Ion Engine Engine Ion Engine Power Core Light Nuclear Core Propulsion Aluminum Leg Leg Aluminum Leg Wheel Wheel Utility Large Storage Unit Storage Large Storage Unit Processor Improved Signal Interpreter Protection Improved Light Armor Plating Weapon Beam Cannon Energy Gun Small Laser Energy Cannon Beam Cannon Ballistic Gun Shotgun Launcher Rocket Launcher Impact Weapon Hammer Special Melee Weapon Datajack Build | -11 -10 -9 -8 ------- Run | Yrd Mat Mat Mat Slots Evolved 4 | . . 2 2 Power 1 | . . . 1 Propulsion 2 | . . 2 . Utility 1 | . . . 1 Weapon . | . . . . Parts Attached 65 | 7 18 19 21 Power 6 | 1 1 1 3 Engine 5 | 1 1 1 2 Core 1 | . . . 1 Reactor . | . . . . Propulsion 20 | 3 7 4 6 Treads . | . . . . Leg 12 | . 2 4 6 Wheel 8 | 3 5 . . Hover . | . . . . Flight . | . . . . Utility 9 | 1 3 4 1 Device . | . . . . Storage 2 | 1 1 . . Processor 1 | . . 1 . Hackware . | . . . . Protection 6 | . 2 3 1 Artifact . | . . . . Weapon 30 | 2 7 10 11 Energy Gun 4 | 1 1 1 1 Energy Cannon 9 | . 3 1 5 Ballistic Gun 6 | 1 1 3 1 Ballistic Cannon . | . . . . Launcher 7 | . 2 3 2 Special Weapon . | . . . . Impact Weapon 3 | . . 1 2 Slashing Weapon . | . . . . Piercing Weapon . | . . . . Special Melee Weapon 1 | . . 1 . Unidentified Prototypes 1 | . . . 1 Parts Lost 19 | . 2 1 16 Power 3 | . 1 . 2 Propulsion 10 | . 1 1 8 Utility 1 | . . . 1 Weapon 5 | . . . 5 Highest Loss Streak 8 | . 1 1 8 To Critical Strikes . | . . . . Average Slot Usage (%) 82 | . 94 96 63 Engine 10 | . 14 11 6 Leg 18 | . . 36 16 Wheel 8 | . 25 4 . Storage 11 | . 14 11 9 Processor 3 | . . . 9 Protection 8 | . 12 10 2 Energy Gun 3 | . 12 . . Energy Cannon 8 | . 8 11 6 Ballistic Gun 2 | . 3 5 . Launcher 2 | . 2 2 . Impact Weapon 3 | . . . 8 Peak Build Rating 26 | 6 10 15 26 Average Rating 12 | 3 9 13 14 On Entrance 7 | . 6 9 14 Naked Turns . | . . . . Heaviest Build 43 | 13 37 37 43 Greatest Support 48 | 26 26 43 48 Greatest Overweight (x) 11 | . 2 1 11 Average Overweight (x) . | . . . 1 Largest Inventory Capacity 15 | 8 15 15 15 Average Capacity 13 | 7 9 15 15 Most Carried 15 | 5 8 14 15 Average Carried 8 | 1 6 9 9 Final Capacity 15 | 8 15 15 15 Final Carried 14 | 2 7 14 8 Class Distribution -------------------- 97% | Mutant Dominant Class ---------------- Mutant | -10/Materials Mutant | -9/Materials Mutant | -8/Materials Resources | -11 -10 -9 -8 ----------- Run | Yrd Mat Mat Mat Matter Collected 1137 | 183 337 257 360 Remotely . | . . . . Salvage Created 1414 | 59 386 393 576 Parts 76 | 2 21 22 31 Haulers Intercepted . | . . . . Recyclers Shooed 2 | . 2 . . Parts Field Recycled . | . . . . Retrieved Matter . | . . . . Parts Self-Destructed . | . . . . Prevented . | . . . . Kills | -11 -10 -9 -8 ------- Run | Yrd Mat Mat Mat Combat Hostiles Destroyed 38 | . 11 13 14 Melee 3 | . . . 3 Guns 8 | . 4 2 2 Cannons 12 | . 2 6 4 AOE 12 | . 5 5 2 Classes Destroyed 10 | 1 4 4 1 Worker 3 | . 1 . 2 Recycler 1 | 1 . . . Operator 1 | . . 1 . Watcher 2 | . 1 . 1 Swarmer 9 | . 3 3 3 Grunt 23 | . 8 6 9 Brawler 1 | . . 1 . Duelist 1 | . . 1 . Sentry 3 | . . 2 1 Hunter 1 | . . . 1 Best Kill Streak 8 | 1 5 8 5 Combat Bots Only 8 | . 4 8 3 Max Kills in Single Turn 2 | 1 2 2 1 Gunslinging . | . . . . Exploded 2 | . 2 2 1 Melee 1 | . . . 1 Uniques/NPCs Destroyed . | . . . . Combat | -11 -10 -9 -8 -------- Run | Yrd Mat Mat Mat Hostile Shots Fired 294 | . 44 51 199 Missed 73 | . 12 14 47 Damage Taken 2903 | . 426 525 1952 Core 710 | . 43 101 566 Absorbed by Shields . | . . . . Core Remaining (%) 85 | 100 82 74 . Volleys Fired 105 | 4 35 38 28 Largest 2 | 2 2 2 2 Hottest 116 | 60 96 116 89 Shots Fired 145 | 8 48 57 32 Gun 62 | 8 33 9 12 Cannon 65 | . 11 40 14 Launcher 18 | . 4 8 6 Special . | . . . . Kinetic 19 | 4 . 9 6 Thermal 94 | 4 33 38 19 Explosive 18 | . 4 8 6 Electromagnetic 14 | . 11 2 1 Robot Hit Streak 15 | 2 15 6 13 Robot Miss Streak 4 | 4 2 4 4 Penetration Max . | . . . . Secondary Targets . | . . . . Shots Hit Robots 118 | 3 35 33 47 Core Hits 75 | 2 21 24 28 Critical Kills 1 | . . . 1 Critical Parts Destroyed 4 | . . . 4 Critical Strikes 5 | . . . 5 Destroy 1 | . . . 1 Smash 4 | . . . 4 Melee Attacks 38 | . . 1 37 Impact 37 | . . . 37 Slashing . | . . . . Piercing . | . . . . Sneak Attacks 1 | . . 1 . Combat Hostiles . | . . . . Follow-up Attacks 1 | . . . 1 Damage Inflicted 3288 | 36 782 1008 1462 Guns 581 | 36 281 113 151 Cannons 803 | . 178 399 226 Explosions 1221 | . 323 496 402 Melee 683 | . . . 683 Ramming . | . . . . Kinetic 244 | 25 . 113 106 Thermal 941 | 11 303 379 248 Explosive 1199 | . 301 496 402 Electromagnetic 221 | . 178 20 23 Impact 683 | . . . 683 Slashing . | . . . . Piercing . | . . . . Highest Corruption 1 | . 1 . . Average Corruption 1 | . 1 . . Corruption Purged . | . . . . Corruption Blocked . | . . . . Overload Shots . | . . . . Overflow Damage 123 | . . . 123 Projectiles 2 | . . . 2 Explosions . | . . . . Melee 121 | . . . 121 Knockbacks 8 | . . . 8 Impact 6 | . . . 6 Kinetic . | . . . . Secondary 2 | . . . 2 Self-Inflicted Damage 82 | . 16 40 26 Shots 3 | . 1 1 1 Rammed . | . . . . Targets Rammed 1 | . . . 1 Kicked 1 | . . . 1 Crushed . | . . . . Highest Temperature 421 | . 421 329 318 Average Temperature 114 | . 150 120 56 Received Heat Transfer 1125 | . 192 150 783 Effects 3 | . 2 1 . Energy Bleed 1 | . . 1 . Interference 1 | . 1 . . Short Circuit 1 | . 1 . . Siege Activations . | . . . . Robots Corrupted 3 | . . . 3 Combat Hostiles 3 | . . . 3 Parts Fried 3 | . . . 3 Impact Corruptions 6 | . . . 6 Robots Melted . | . . . . Combat Hostiles . | . . . . Parts Melted 1 | . 1 . . Heat Transferred 2020 | 25 700 814 481 Parts Sabotaged . | . . . . Parts Stolen . | . . . . Parts Stripped . | . . . . Power Chain Reactions 1 | . 1 . . Alert | -11 -10 -9 -8 ------- Run | Yrd Mat Mat Mat Peak Influence 543 | 5 383 543 338 Initial 161 | . 3 161 152 Average 261 | . 239 362 216 Maximum Alert Level 2 | . 1 2 1 Low Security (%) 29 | 100 34 13 32 Level 1 63 | . 65 63 67 Level 2 7 | . . 23 . Level 3 . | . . . . Level 4 . | . . . . Level 5 . | . . . . High Security . | . . . . Max Security . | . . . . Squads Dispatched 4 | . 1 1 2 Investigation 1 | . . 1 . Extermination . | . . . . Reinforcement 3 | . 1 . 2 Assault . | . . . . Garrison . | . . . . Intercept . | . . . . Searches Triggered . | . . . . Construction Impeded 1 | . . . 1 Haulers Reinforced . | . . . . Active Scanning Responses . | . . . . Cargo Convoy Interrupts . | . . . . Stealth | -11 -10 -9 -8 --------- Run | Yrd Mat Mat Mat Distress Signals 4 | . 4 . . Communications Jammed . | . . . . Distress Signals . | . . . . Times Spotted 47 | . 13 17 17 Peak Tracking Total 5 | . 5 5 5 Tactical Retreats 2 | . 1 . 1 Traps | -11 -10 -9 -8 ------- Run | Yrd Mat Mat Mat Traps Triggered 3 | . 2 1 . Indirectly . | . . . . Trap Hack Attempts . | . . . . Triggered . | . . . . Disarmed . | . . . . Reprogrammed . | . . . . Reused . | . . . . Traps Extracted . | . . . . Installed . | . . . . Triggered . | . . . . Machines | -11 -10 -9 -8 ---------- Run | Yrd Mat Mat Mat Machines Disabled 4 | . 2 . 2 Max in Single Turn 1 | . 1 . 1 Machines Repaired . | . . . . Machines Dismantled . | . . . . Machines Sabotaged . | . . . . Overloaded Fab Kills . | . . . . Hacking | -11 -10 -9 -8 --------- Run | Yrd Mat Mat Mat Machines Accessed . | . . . . Terminals . | . . . . Fabricators . | . . . . Repair Stations . | . . . . Recycling Units . | . . . . Scanalyzers . | . . . . Garrison Access . | . . . . Total Hacks . | . . . . Successful . | . . . . Failed . | . . . . Catastrophic . | . . . . Database Lockouts . | . . . . Manual . | . . . . Terminals . | . . . . Fabricators . | . . . . Repair Stations . | . . . . Recycling Units . | . . . . Scanalyzers . | . . . . Garrison Access . | . . . . Terminal Hacks . | . . . . Fabricator Hacks . | . . . . Repair Station Hacks . | . . . . Recycling Unit Hacks . | . . . . Scanalyzer . | . . . . Garrison Access Hacks . | . . . . Unauthorized Hacks . | . . . . Terminals . | . . . . Fabricators . | . . . . Repair Stations . | . . . . Recycling Units . | . . . . Scanalyzers . | . . . . Garrison Access . | . . . . Data Cores Recovered 1 | . . 1 . Used . | . . . . Hacking Detections . | . . . . Full Trace Events . | . . . . Feedback Events . | . . . . Feedback Blocked . | . . . . Robot Schematics Acquired . | . . . . Robots Built . | . . . . Authchips . | . . . . Time . | . . . . Total Robot Build Rating . | . . . . Part Schematics Acquired . | . . . . Parts Built . | . . . . Authchips . | . . . . Time . | . . . . Total Part Build Rating . | . . . . Parts Repaired . | . . . . Time . | . . . . Parts Recycled . | . . . . Recycled Matter . | . . . . Retrieved Matter . | . . . . Retrieved Components . | . . . . Parts Scanalyzed . | . . . . Part Schematics Acquired . | . . . . Parts Damaged . | . . . . Bothacking | -11 -10 -9 -8 ------------ Run | Yrd Mat Mat Mat Used RIF Installer . | . . . . Robots Hacked 1 | . . 1 . Non-combat 1 | . . 1 . Combat . | . . . . Robot Hacks Applied 1 | . . 1 . parse_system 1 | . . 1 . Relay Couplers Released . | . . . . Fabnet Peak Effective % . | . . . . Robots Rewired . | . . . . Allies Hacked . | . . . . Hacks Repelled . | . . . . Allies | -11 -10 -9 -8 -------- Run | Yrd Mat Mat Mat Total Allies . | . . . . Largest Group . | . . . . Highest-Rated Group . | . . . . Highest-Rated Ally . | . . . . Total Orders . | . . . . Ally Attacks . | . . . . Total Damage . | . . . . Kills . | . . . . Allies Corrupted . | . . . . Allies Melted . | . . . . Intel | -11 -10 -9 -8 ------- Run | Yrd Mat Mat Mat Robot Analysis Total . | . . . . Derelict Logs Recovered . | . . . . Drone Launches . | . . . . Drone Recoveries . | . . . . Exploration | -11 -10 -9 -8 ------------- Run | Yrd Mat Mat Mat Turns Passed 1484 | 56 377 481 570 Spaces Moved 679 | 44 218 261 156 Core 39 | 20 . . 19 Treads . | . . . . Legs 329 | . . 192 137 Wheels 311 | 24 218 69 . Hover . | . . . . Flight . | . . . . Fastest Speed 50 | 50 80 95 120 Average Speed 133 | 66 95 128 213 Slowest Speed 600 | 90 110 190 600 Overloaded Moves . | . . . . Propulsion Burnouts . | . . . . Robots Hopped . | . . . . Cave-ins Triggered . | . . . . Exploration Rate (%) 20 | 4 38 26 15 Regions Visited 3 Branch Regions . Pre-discovered Areas . | . . . . Known Exits Taken 1 | . . 1 . Unknown Exits Taken 2 | 1 1 . . Scrap Searched . | . . . . Spaces Dug . | . . . . Terrain Destroyed 143 | . 40 75 28 Melee . | . . . . Projectile . | . . . . AOE 143 | . 40 75 28 Terrain Rammed . | . . . . Walls Destroyed . | . . . . Machines Disabled . | . . . . Actions | -11 -10 -9 -8 --------- Run | Yrd Mat Mat Mat Total 1044 | 61 336 348 299 Wait 84 | . 39 8 37 Move 676 | 43 217 260 156 Hop . | . . . . Pick Up 50 | 7 17 14 12 Fast Attach 1 | 1 . . . Attach 34 | 5 5 8 16 Detach 5 | . 1 3 1 Swap 30 | 1 13 11 5 Drop 21 | . 9 5 7 Fire 105 | 4 35 38 28 Melee 37 | . . 1 36 Ram . | . . . . Kick 1 | . . . 1 Crush . | . . . . Escape Stasis . | . . . . Rewire . | . . . . Trap . | . . . . Miscellaneous . | . . . . Route ------- -11/Scrapyard -10/Materials (discovered 2 exits: *Mat / [*Min]) -9/Materials -8/Materials History --------- Turn | Location | Event 6 | -11/Scrapyard | Discovered new exit (range 16) 57 | -11/Scrapyard | Entered Materials 318 | -10/Materials | Discovered new exit (range 9) 368 | -10/Materials | Build established: Mutant 406 | -10/Materials | Discovered new exit (range 16) 434 | -10/Materials | Entered another Materials area 434 | -9/Materials | Evolved 2 slots: Propulsion x2 543 | -9/Materials | Destroyed 8 combat bots 812 | -9/Materials | Discovered new exit (range 5) 915 | -9/Materials | Identified exit to Materials 915 | -9/Materials | Entered another Materials area 915 | -8/Materials | Evolved 2 slots: Power x1, Utility x1 1180 | -8/Materials | Lost 8 parts (1p5n1u1w) 1319 | -8/Materials | Core integrity fell below 50% 1338 | -8/Materials | Lost 4 parts (1p1n2w) 1456 | -8/Materials | Core integrity fell below 20% 1485 | -8/Materials | Destroyed by G-47 Trooper with Particle Gun Last Messages --------------- K-01 Serf collects debris. U-05 Engineer lays Concrete. K-01 Serf collects debris. Acquired 56 matter. R-06 Scavenger collects Particle Gun. K-01 Serf collects debris. U-05 Engineer lays Concrete. G-47 Trooper destroyed. Acquired 26 matter. Aluminum Leg destroyed. Critical hit (Burn: +37). G-47 Trooper knocked back. Particle Cannon destroyed. K-01 Serf collects debris. Destroyed Lgt. Nuclear Core. G-47 Trooper system corrupted by crushing effect. G-47 Trooper IFF system glitched. G-47 Trooper misfires. G-47 Trooper knocked back. Map ----- +----------------------------------------------------+ | # # # * #??????????????????????????? | | ########## % ##########??????????????????????????? | | ?????????# # #??????????????????????????? | | ?????????# + " ]#??????????????????????????? | | ?????????# # T #??????????????????????????? | | ??######## # "" #??????????????????????????? | | ??# # # #??????????????????????????? | | ??# !# # """ #??????????????????????????? | | ??# # %# """ * #??????????????????????????? | | ??# # # """ #??????????????????????????? | | ??# "T" / # #??????????????????????????? | | ??# """ # #######??#??????????????????????????? | | ??######## #???????????????????????????????????? | | ########## ##??????????????????????????????????? | | #??????????????????????????????????? | | #??????????????????????????????????? | | #??????????????????????????????????? | | #??#######?????????????????????????? | | % ####!!!!###????????????????????????? | | """ ###! !###???????????????????????? | | """ ### # #???????????????????????? | | """ " % ### ###########???????????????? | | % a + ???????????? | | g#####??????????????????? | | = ##?????????????????????? | | ###+######+######+#####@##?????????????????????? | | ??? ????% #?# % #?????????????????????? | | ??? ????# #?# g ! ##????????????????????? | | ??# ????#?""" #?# ##????????????????????? | | ???????????""" #?# """ ! #?????????????????????? | | ???????????""" #?# #?????????????????????? | | ??????????? ?? #?# #?????????????????????? | | ???????????????##?# ""T"" #????????????????????? | | ??????????????????# """"" ##????????????????????? | | ??????????????????# #?????????????????????? | | ??????????????????##########?????????????????????? | | ?????????????????????????????????????????????????? | | ?????????????????????????????????????????????????? | | ?????????????????????????????????????????????????? | | ?????????????????????????????????????????????????? | | ?????????????????????????????????????????????????? | | ?????????????????????????????????????????????????? | | ?????????????????????????????????????????????????? | | ?????????????????????????????????????????????????? | | ?????????????????????????????????????????????????? | | ?????????????????????????????????????????????????? | | ?????????????????????????????????????????????????? | | ?????????????????????????????????????????????????? | | ?????????????????????????????????????????????????? | | ?????????????????????????????????????????????????? | +----------------------------------------------------+ Best States ------------- Heat Dissipation 31 Energy Generation 27 Energy Capacity 415 Matter Stores 300 Matter Capacity 300 Sight Range 16 Terrain Scan Density 10 Armor Coverage 225 Evasion (%) 55 Item Schematics ----------------- None Robot Schematics ------------------ None Fabricated ------------ Nothing Alien Tech Used ----------------- None Achievements -------------- Power Corrupts Challenges ------------ None Game ------ Seed DisposableScrapoidScrap Manual? 0 Play Time 00:20:28 Cumulative 3.0 hours Start 2024.10.01 @ 23:33:34 End 2024.10.01 @ 23:53:47 Sessions 1 Manual Loads 0 Difficulty Rogue Special Mode None Game No. 7 Rogue 7 Adventurer 0 Explorer 0 Win Type - Total 0 Types 0/0/0/0/0/0/0/0/0 Lore% 1 Gallery% 8 Achievement% 7 Wizard Run 0 Options --------- Layout 1 ASCII 0 Keyboard 0 Movement Mouse Keybinds 0 Fullscreen 1 Font 24/Smallcaps Map View 50x35 Zoom Use 0% Tactical HUD 0 Map Filters NONE Filters NONE Steam 1 RUN: e48a64a5-49e3-4374-9d07-fe73f90573fa